bitfinex/quotes_BTCUSD_20251214
["timestamp","ask_amount","ask_price","bid_price","bid_amount"]
[1765700605909,0.00034041,90288.0,90287.0,1.42799377]
[1765700608040,0.00034041,90288.0,90287.0,1.42899377]
[1765700608253,0.00034041,90288.0,90287.0,1.42999377]
[1765700608452,4.1e-07,90288.0,90287.0,1.42999377]
[1765700611666,0.01107088,90327.0,90324.0,0.01107125]
[1765700611856,0.01107088,90327.0,90325.0,0.01748]
[1765700611857,0.01115638,90327.0,90325.0,0.01748]
[1765700612551,8.55e-05,90327.0,90325.0,0.01748]
[1765700612994,0.00113335,90326.0,90325.0,0.01748]
[1765700613812,0.00113335,90326.0,90325.0,0.01848]
[1765700614019,0.00113335,90326.0,90325.0,0.01748]
[1765700614164,0.00113335,90326.0,90325.0,0.01848]
[1765700614383,0.00113335,90326.0,90325.0,0.01948]
[1765700615287,0.00113335,90326.0,90325.0,0.07078]
[1765700617775,0.00113335,90326.0,90325.0,0.06878]
[1765700617913,0.00113335,90326.0,90325.0,0.07378]
[1765700621426,0.00113335,90326.0,90325.0,0.11345002]
[1765700621596,0.00113335,90326.0,90325.0,0.07378]
[1765700621794,0.00113335,90326.0,90325.0,0.11345037]
[1765700622828,0.00113335,90326.0,90325.0,0.11617326]
[1765700623234,0.00113335,90326.0,90325.0,0.07650289]
[1765700624189,0.00113335,90326.0,90325.0,0.07539287]
[1765700625871,0.00113335,90326.0,90325.0,0.11339985]
[1765700627276,0.00113335,90326.0,90325.0,0.12447024]
[1765700632420,0.00113335,90326.0,90325.0,0.08481039]
[1765700643504,0.00113335,90326.0,90325.0,0.08642326]
[1765700644793,0.00113335,90326.0,90325.0,0.59942326]
[1765700644998,0.00113335,90326.0,90325.0,0.08642326]
[1765700647262,0.00113335,90326.0,90325.0,0.08753328]
[1765700655030,0.00113335,90326.0,90325.0,1.08753328]
[1765700655230,0.00113335,90326.0,90325.0,1.08642326]
[1765700669979,0.00113335,90326.0,90325.0,1.08142326]
[1765700670146,0.00513335,90326.0,90325.0,1.08142326]
[1765700670345,0.00913335,90326.0,90325.0,0.08142326]
[1765700670550,0.00913335,90326.0,90325.0,1.08253328]
[1765700670765,0.00913335,90326.0,90325.0,1.08142326]
[1765700671212,0.00913335,90326.0,90325.0,1.16085859]
[1765700672414,0.00913335,90326.0,90325.0,1.08142326]
[1765700672579,0.00513335,90326.0,90325.0,1.08142326]
[1765700673837,0.00813335,90326.0,90325.0,1.08142326]
[1765700675307,0.00413335,90326.0,90325.0,1.08142326]
[1765700675709,0.00713335,90326.0,90325.0,1.08142326]
[1765700676691,0.00413335,90326.0,90325.0,1.08142326]
[1765700677051,0.00713335,90326.0,90325.0,1.08142326]
[1765700688829,0.00713335,90326.0,90325.0,0.08142326]
[1765700689030,0.00713335,90326.0,90325.0,1.08253328]
[1765700689330,0.00713335,90326.0,90325.0,1.08142326]
[1765700696040,0.00713335,90326.0,90325.0,1.06398326]
[1765700696260,0.00713335,90326.0,90325.0,0.16087842]
[1765700697020,0.00713335,90326.0,90325.0,0.16198844]
[1765700697269,0.00713335,90326.0,90325.0,0.08253328]
[1765700698494,0.00713335,90326.0,90325.0,0.08142326]
[1765700698698,0.00713335,90326.0,90325.0,0.08253328]
[1765700699735,0.00713335,90326.0,90325.0,0.1619932]
[1765700699963,0.00713335,90326.0,90325.0,0.01107039]
[1765700700171,0.22855353,90326.0,90324.0,0.01744]
[1765700700337,0.22742018,90326.0,90324.0,0.01744]
[1765700700754,0.22442018,90326.0,90324.0,0.01744]
[1765700700935,0.01115638,90327.0,90324.0,0.01744]
[1765700701147,0.005,90326.0,90324.0,0.01744]
[1765700701375,0.005,90326.0,90324.0,0.0770276]
[1765700701525,0.01115638,90327.0,90324.0,0.09916961]
[1765700702135,8.55e-05,90327.0,90325.0,0.22142264]
[1765700702543,0.01115638,90327.0,90324.0,0.09916961]
[1765700702750,0.001,90326.0,90325.0,0.002]
[1765700703157,0.001,90326.0,90324.0,0.03958201]
[1765700703376,8.55e-05,90327.0,90324.0,0.03958201]
[1765700703377,8.55e-05,90327.0,90325.0,0.003]
[1765700703785,8.55e-05,90327.0,90324.0,0.03958201]
[1765700704004,0.28231444,90326.0,90324.0,0.01107076]
[1765700704213,0.28231444,90326.0,90310.0,0.24426813]
[1765700704214,0.2214447,90316.0,90315.0,0.0595876]
[1765700704408,0.2214447,90316.0,90313.0,0.0595876]
[1765700704409,0.2214496,90314.0,90313.0,0.0595876]
[1765700704631,0.23252208,90314.0,90311.0,0.01744]
[1765700705022,0.01107248,90314.0,90311.0,0.01744]
[1765700705240,0.01107248,90314.0,90313.0,0.03968764]
[1765700706338,0.01107248,90314.0,90312.0,0.03968764]
[1765700706963,0.23652445,90314.0,90312.0,0.03968764]
[1765700707187,0.23652445,90314.0,90311.0,0.05712764]
[1765700707387,0.23252445,90314.0,90311.0,0.05712764]
[1765700707605,0.23652445,90314.0,90311.0,0.05712764]
[1765700707939,0.24052445,90314.0,90311.0,0.05712764]
[1765700708108,0.01907248,90314.0,90311.0,0.06820048]
[1765700708298,0.008,90314.0,90311.0,0.02851284]
[1765700708502,0.008,90314.0,90313.0,0.02816]
[1765700708900,0.004,90314.0,90313.0,0.05208738]
[1765700709280,0.01107149,90322.0,90318.0,0.01107199]
[1765700709414,0.01107174,90320.0,90316.0,0.01107223]
[1765700709614,0.01107174,90320.0,90316.0,0.23251679]
[1765700709802,0.01107174,90320.0,90316.0,0.01107223]
[1765700710000,0.2325092,90319.0,90316.0,0.01107223]
[1765700710558,0.2325092,90319.0,90316.0,0.01307223]
[1765700710728,0.01107149,90322.0,90318.0,0.01107199]
[1765700711522,0.01107162,90321.0,90318.0,0.01107199]
[1765700712235,0.23250437,90321.0,90318.0,0.01107199]
[1765700712437,0.00092464,90319.0,90318.0,0.01107199]
[1765700713276,0.00092464,90319.0,90318.0,0.01307199]
[1765700713478,0.00092464,90319.0,90318.0,0.01507199]
[1765700713657,0.00092464,90319.0,90318.0,0.01307199]
[1765700713873,0.00092464,90319.0,90318.0,0.01107199]
[1765700714213,0.00092464,90319.0,90318.0,0.01507199]
[1765700714752,0.00092464,90319.0,90318.0,0.004]
[1765700718481,0.00092464,90319.0,90318.0,0.2254398]
[1765700724158,0.00092464,90319.0,90318.0,0.004]
[1765700725166,0.22236198,90319.0,90318.0,0.004]
[1765700731311,0.22236198,90319.0,90318.0,0.04368764]
[1765700733201,0.22236198,90319.0,90318.0,0.004]
[1765700739571,0.00092464,90319.0,90318.0,0.004]
[1765700747578,0.00092464,90319.0,90318.0,0.04416]
[1765700747846,0.00092464,90319.0,90318.0,0.2655998]
[1765700750279,0.00092464,90319.0,90318.0,0.3252254]
[1765700761345,0.00092464,90319.0,90318.0,0.1037856]
[1765700761758,0.00092464,90319.0,90318.0,0.0788656]
[1765700761959,0.00092464,90319.0,90318.0,0.01924]
[1765700766995,0.00092464,90319.0,90318.0,0.04336]
[1765700774304,0.00092464,90319.0,90318.0,0.1029856]
[1765700776806,0.00092464,90319.0,90318.0,0.1150856]
[1765700778104,0.00092464,90319.0,90318.0,0.11619992]
[1765700783005,0.00092464,90319.0,90318.0,0.1150856]
[1765700785183,0.00092464,90319.0,90318.0,0.0636256]
[1765700785352,0.00092464,90319.0,90318.0,0.004]
[1765700786171,0.0286043,90319.0,90318.0,0.004]
[1765700822789,0.00092464,90319.0,90318.0,0.004]
[1765700825852,0.0286043,90319.0,90318.0,0.004]
[1765700826958,0.06186156,90319.0,90318.0,0.004]
[1765700827494,0.06186156,90319.0,90308.0,0.03976119]
[1765700827707,0.06089426,90309.0,90308.0,0.03976119]
[1765700828318,0.22146432,90308.0,90307.0,0.03976119]
[1765700830000,0.22546432,90308.0,90307.0,0.03976119]
[1765700830207,0.22546432,90308.0,90306.0,0.03976119]
[1765700830625,0.22946432,90308.0,90306.0,0.03976119]
[1765700831048,0.22546432,90308.0,90306.0,0.03976119]
[1765700831456,0.22946432,90308.0,90306.0,0.03976119]
[1765700832097,0.22546432,90308.0,90306.0,0.03976119]
[1765700832303,0.22946432,90308.0,90306.0,0.03976119]
[1765700834441,0.22146922,90306.0,90305.0,0.03976119]
[1765700835848,0.22546922,90306.0,90305.0,0.03976119]
[1765700836059,0.22946922,90306.0,90305.0,0.03976119]
[1765700838184,0.22946922,90306.0,90304.0,0.05720119]
[1765700838755,0.02768395,90305.0,90304.0,0.05720119]
[1765700840186,0.03168395,90305.0,90304.0,0.05720119]
[1765700840389,0.03168395,90305.0,90304.0,0.01744]
[1765700840615,0.03219109,90305.0,90304.0,0.01744]
[1765700841198,0.03619109,90305.0,90304.0,0.01744]
[1765700843388,0.00850714,90305.0,90304.0,0.01744]
[1765700854166,0.00850714,90305.0,90304.0,0.05720119]
[1765700855928,0.03361373,90305.0,90304.0,0.05720119]
[1765700857268,0.22147658,90303.0,90300.0,0.03976119]
[1765700857404,0.22148639,90299.0,90297.0,0.05720119]
[1765700858247,0.22148639,90299.0,90297.0,0.01744]
[1765700858446,0.00029834,90298.0,90297.0,0.01744]
[1765700860110,0.00329834,90298.0,90297.0,0.01744]
[1765700861461,0.00629834,90298.0,90297.0,0.01744]
[1765700862834,0.00329834,90298.0,90297.0,0.01744]
[1765700863043,0.22151092,90289.0,90287.0,0.03976119]
[1765700863258,0.22151092,90289.0,90288.0,0.01744]
[1765700865039,0.22251092,90289.0,90288.0,0.01744]
[1765700865184,0.22451092,90289.0,90288.0,0.01744]
[1765700865576,0.22251092,90289.0,90288.0,0.01744]
[1765700866037,0.22351092,90289.0,90288.0,0.01744]
[1765700880599,0.22151092,90289.0,90288.0,0.01744]
[1765700880949,0.22151092,90289.0,90288.0,0.02544]
[1765700881121,0.22151092,90289.0,90288.0,0.02044]
[1765700881322,0.22151092,90289.0,90288.0,0.01744]
[1765700881526,0.22151092,90289.0,90288.0,0.02144]
[1765700881751,0.22151092,90289.0,90288.0,0.02444]
[1765700884639,0.25477854,90289.0,90288.0,0.02444]
[1765700886514,0.25477854,90289.0,90288.0,0.007]
[1765700906905,0.54547854,90289.0,90288.0,0.007]
[1765700909252,0.55585935,90289.0,90288.0,0.007]
[1765700912387,0.22157473,90263.0,90262.0,0.03976119]
[1765700912585,0.22157473,90263.0,90262.0,0.00038585]
[1765700913629,0.22157473,90263.0,90262.0,0.00338585]
[1765700914360,0.22157473,90263.0,90262.0,0.00438585]
[1765700922188,0.22157473,90263.0,90262.0,0.00338585]
[1765700922409,0.22157473,90263.0,90262.0,0.00038585]
[1765700922824,0.22157473,90263.0,90262.0,0.00138585]
[1765700938946,0.23905473,90263.0,90262.0,0.00138585]
[1765700963052,0.22161155,90248.0,90246.0,0.01748]
[1765700963254,0.22161155,90248.0,90246.0,0.01756542]
[1765700964402,0.22161155,90248.0,90246.0,0.01856542]
[1765700965219,0.22161155,90248.0,90246.0,0.00108542]
[1765700971817,0.02770175,90247.0,90246.0,0.00108542]
[1765700972694,0.02770175,90247.0,90246.0,8.542e-05]
[1765700974346,0.22161155,90248.0,90246.0,8.542e-05]
[1765700975084,0.22161155,90248.0,90247.0,0.01748]
[1765700976024,0.22161155,90248.0,90246.0,0.01756542]
[1765700976634,0.06089426,90247.0,90246.0,0.01756542]
[1765700988042,0.06089426,90247.0,90246.0,8.542e-05]
[1765700988043,0.08859601,90247.0,90246.0,8.542e-05]
[1765700988240,0.06089426,90247.0,90246.0,8.542e-05]
[1765700989275,0.06189426,90247.0,90246.0,8.542e-05]
[1765700989431,0.06289426,90247.0,90246.0,8.542e-05]
[1765700990074,0.09059601,90247.0,90246.0,8.542e-05]
[1765700990465,0.06289426,90247.0,90246.0,8.542e-05]
[1765700996485,0.002,90247.0,90246.0,8.542e-05]
[1765700999566,0.06289426,90247.0,90246.0,8.542e-05]
[1765701000813,0.09059601,90247.0,90246.0,8.542e-05]
[1765701001680,0.06289426,90247.0,90246.0,8.542e-05]
[1765701001837,0.09059601,90247.0,90246.0,8.542e-05]
[1765701002039,0.10807601,90247.0,90246.0,8.542e-05]
[1765701002439,0.10707601,90247.0,90246.0,8.542e-05]
[1765701002858,0.10807601,90247.0,90246.0,8.542e-05]
[1765701003667,0.10707601,90247.0,90246.0,8.542e-05]
[1765701003873,0.10807601,90247.0,90246.0,8.542e-05]
[1765701005776,0.08037426,90247.0,90246.0,8.542e-05]
[1765701006709,0.10807601,90247.0,90246.0,8.542e-05]
[1765701008354,0.06289426,90247.0,90246.0,8.542e-05]
[1765701011673,0.002,90247.0,90246.0,0.02304542]
[1765701011873,0.06289426,90247.0,90246.0,0.02304542]
[1765701012072,0.06289426,90247.0,90246.0,0.03942542]
[1765701012725,0.002,90247.0,90246.0,0.03942542]
[1765701012975,0.06289426,90247.0,90246.0,0.03942542]
[1765701013519,0.002,90247.0,90246.0,0.03942542]
[1765701016468,0.002,90247.0,90246.0,0.01646542]
[1765701017586,0.09059601,90247.0,90246.0,0.01756542]
[1765701019004,0.09059601,90247.0,90246.0,8.542e-05]
[1765701023895,0.06289426,90247.0,90246.0,8.542e-05]
[1765701030933,0.09059601,90247.0,90246.0,8.542e-05]
[1765701033360,0.02970175,90247.0,90246.0,8.542e-05]
[1765701033561,0.002,90247.0,90246.0,8.542e-05]
[1765701037116,0.002,90247.0,90246.0,0.03881542]
[1765701040381,0.002,90247.0,90246.0,0.04042829]
[1765701040777,0.002,90247.0,90246.0,0.07370414]
[1765701041506,0.002,90247.0,90246.0,0.07481107]
[1765701041709,0.002,90247.0,90246.0,0.01917829]
[1765701043526,0.002,90247.0,90246.0,0.00169829]
[1765701043642,0.02970175,90247.0,90246.0,0.00169829]
[1765701044887,0.002,90247.0,90246.0,0.00169829]
[1765701049851,0.00183238,90247.0,90246.0,0.00169829]
[1765701052898,0.00183238,90247.0,90246.0,0.05239829]
[1765701054828,0.00183238,90247.0,90246.0,0.27401476]
[1765701062182,0.00183238,90247.0,90246.0,0.30728755]
[1765701064469,0.22344639,90247.0,90246.0,0.04148565]
[1765701064647,0.22344639,90247.0,90246.0,0.05896565]
[1765701065228,0.22344639,90247.0,90246.0,0.01917829]
[1765701066168,0.22344639,90247.0,90246.0,0.00169829]
[1765701066344,0.22344639,90247.0,90246.0,0.01917829]
[1765701068513,0.22344639,90247.0,90246.0,0.05896565]
[1765701070300,0.22344639,90247.0,90246.0,8.542e-05]
[1765701070479,0.22344639,90247.0,90246.0,0.01756542]
[1765701102040,0.22344639,90247.0,90246.0,8.542e-05]
[1765701102208,0.22344639,90247.0,90246.0,0.01756542]
[1765701110550,0.22344639,90247.0,90246.0,0.05742718]
[1765701113270,0.00183238,90247.0,90246.0,0.05987829]
[1765701120380,0.00183238,90247.0,90246.0,0.06103676]
[1765701121715,0.00183238,90247.0,90246.0,0.07095764]
[1765701124624,0.00183238,90247.0,90246.0,0.05347764]
[1765701124830,0.00183238,90247.0,90246.0,0.07095764]
[1765701125030,0.00183238,90247.0,90246.0,0.13066933]
[1765701127083,0.00183238,90247.0,90246.0,0.11958998]
[1765701127324,0.00183238,90247.0,90246.0,0.05987829]
[1765701130297,0.22344639,90247.0,90246.0,0.05987829]
[1765701133867,0.22344639,90247.0,90246.0,8.542e-05]
[1765701134074,0.22344639,90247.0,90246.0,0.01756542]
[1765701136357,0.22344639,90247.0,90246.0,0.0573791]
[1765701152449,0.22289943,90247.0,90246.0,0.0573791]
[1765701153173,0.22289943,90247.0,90246.0,0.01756542]
[1765701158952,0.22289943,90247.0,90246.0,8.542e-05]
[1765701159166,0.22289943,90247.0,90246.0,0.01756542]
[1765701159571,0.22289943,90247.0,90246.0,8.542e-05]
[1765701159794,0.22289943,90247.0,90246.0,0.01756542]
[1765701168603,0.22289943,90247.0,90246.0,8.542e-05]
[1765701181885,0.22289943,90247.0,90246.0,0.02489542]
[1765701182236,0.22289943,90247.0,90246.0,0.04081542]
[1765701182848,0.00128542,90247.0,90246.0,0.04081542]
[1765701183051,0.22289943,90247.0,90246.0,0.04081542]
[1765701184056,0.00128542,90247.0,90246.0,0.04081542]
[1765701186277,0.00128542,90247.0,90246.0,0.04242829]
[1765701186480,0.00128542,90247.0,90246.0,0.07570444]
[1765701192502,0.00128542,90247.0,90246.0,0.11555126]
[1765701205422,0.00128542,90247.0,90246.0,0.07570444]
[1765701205639,0.00128542,90247.0,90246.0,0.07686291]
[1765701231974,0.00128542,90247.0,90246.0,0.08898291]
[1765701243376,0.00128542,90247.0,90246.0,0.08782444]
[1765701277285,0.00128542,90247.0,90246.0,0.10530444]
[1765701301290,0.00128542,90247.0,90246.0,0.08782444]
[1765701301490,0.00128542,90247.0,90246.0,0.08049444]
[1765701302721,0.00128542,90247.0,90246.0,0.10516444]
[1765701313080,0.00128542,90247.0,90246.0,0.08768444]
[1765701313278,0.00128542,90247.0,90246.0,0.10516444]
[1765701318776,0.00128542,90247.0,90246.0,0.1068839]
[1765701320198,0.22289943,90247.0,90246.0,0.0541739]
[1765701325101,0.00128542,90247.0,90246.0,0.0541739]
[1765701325314,0.00128542,90247.0,90246.0,0.0943339]
[1765701349481,0.00128542,90247.0,90246.0,0.0768539]
[1765701349678,0.00128542,90247.0,90246.0,0.0943339]
[1765701350437,0.00128542,90247.0,90246.0,0.0529439]
[1765701350731,0.00128542,90247.0,90246.0,0.0704239]
[1765701350935,0.02898717,90247.0,90246.0,0.0704239]
[1765701352258,0.00128542,90247.0,90246.0,0.0704239]
[1765701352904,0.02898717,90247.0,90246.0,0.0704239]
[1765701353104,0.00128542,90247.0,90246.0,0.0704239]
[1765701353627,0.00128542,90247.0,90246.0,0.0954239]
[1765701353826,0.02898717,90247.0,90246.0,0.0954239]
[1765701354175,0.00128542,90247.0,90246.0,0.0954239]
[1765701354399,0.02898717,90247.0,90246.0,0.0954239]
[1765701354560,0.00128542,90247.0,90246.0,0.0954239]
[1765701354719,0.02898717,90247.0,90246.0,0.0954239]
[1765701354931,0.00128542,90247.0,90246.0,0.0954239]
[1765701355157,0.02898717,90247.0,90246.0,0.0954239]
[1765701355355,0.00128542,90247.0,90246.0,0.0954239]
[1765701355960,0.02898717,90247.0,90246.0,0.0954239]
[1765701356295,0.00128542,90247.0,90246.0,0.0704239]
[1765701356613,0.02898717,90247.0,90246.0,0.0704239]
[1765701356815,0.00128542,90247.0,90246.0,0.0704239]
[1765701357024,0.02898717,90247.0,90246.0,0.0704239]
[1765701357184,0.00128542,90247.0,90246.0,0.0704239]
[1765701359831,0.00128542,90247.0,90246.0,0.0930939]
[1765701360327,0.00128542,90247.0,90246.0,0.0704239]
[1765701360763,0.00128542,90247.0,90246.0,0.05256103]
[1765701361038,0.25060118,90247.0,90246.0,0.05256103]
[1765701361233,0.22289943,90247.0,90246.0,0.05256103]
[1765701361576,0.25060118,90247.0,90246.0,0.01928488]
[1765701362398,0.22289943,90247.0,90246.0,0.01928488]
[1765701379286,0.22289943,90247.0,90246.0,0.00180488]
[1765701381722,0.22227743,90247.0,90246.0,0.00180488]
[1765701383116,0.22227743,90247.0,90246.0,0.04082488]
[1765701386203,0.00066342,90247.0,90246.0,0.04243775]
[1765701386646,0.00066342,90247.0,90246.0,0.07571696]
[1765701389271,0.00066342,90247.0,90246.0,0.11556936]
[1765701391619,0.00066342,90247.0,90246.0,0.07571696]
[1765701392454,0.00066342,90247.0,90246.0,0.13551074]
[1765701393231,0.00066342,90247.0,90246.0,0.07571696]
[1765701399873,0.00066342,90247.0,90246.0,0.07687543]
[1765701408379,0.00066342,90247.0,90246.0,0.13666921]
[1765701413361,0.00066342,90247.0,90246.0,0.07687543]
[1765701415222,0.00066342,90247.0,90246.0,0.07571696]
[1765701420151,0.00066342,90247.0,90246.0,0.07687543]
[1765701432239,0.00066342,90247.0,90246.0,0.07571696]
[1765701433396,0.00066342,90247.0,90246.0,0.07687543]
[1765701439734,0.00066342,90247.0,90246.0,0.07571696]
[1765701443111,0.00066342,90247.0,90246.0,0.07687543]
[1765701449551,0.00066342,90247.0,90246.0,0.07571696]
[1765701451434,0.00066342,90247.0,90246.0,0.07687543]
[1765701457752,0.00066342,90247.0,90246.0,0.07571696]
[1765701461439,0.00066342,90247.0,90246.0,0.07687543]
[1765701462018,0.00066342,90247.0,90246.0,0.07571696]
[1765701467645,0.00066342,90247.0,90246.0,0.07687543]
[1765701471113,0.00066342,90247.0,90246.0,0.09435543]
[1765701475911,0.00066342,90247.0,90246.0,0.09319696]
[1765701477451,0.00066342,90247.0,90246.0,0.09435543]
[1765701482123,0.00066342,90247.0,90246.0,0.09319696]
[1765701491401,0.00066342,90247.0,90246.0,0.09435543]
[1765701505246,0.00066342,90247.0,90246.0,0.09319696]
[1765701506939,0.00066342,90247.0,90246.0,0.09435543]
[1765701508279,0.00066342,90247.0,90246.0,0.09319696]
[1765701519870,0.00066342,90247.0,90246.0,0.07571696]
[1765701520067,0.00066342,90247.0,90246.0,0.03669696]
[1765701520271,0.00066342,90247.0,90246.0,0.05417696]
[1765701521757,0.00166342,90247.0,90246.0,0.05417696]
[1765701521935,0.001,90247.0,90246.0,0.05417696]
[1765701522337,0.002,90247.0,90246.0,0.05417696]
[1765701526023,0.002,90247.0,90246.0,0.03669696]
[1765701526207,0.002,90247.0,90246.0,0.05417696]
[1765701532056,0.002,90247.0,90246.0,0.03669696]
[1765701532265,0.002,90247.0,90246.0,0.05417696]
[1765701533680,0.002,90247.0,90246.0,0.03669696]
[1765701533894,0.002,90247.0,90246.0,0.05417696]
[1765701536120,0.002,90247.0,90246.0,0.0940584]
[1765701536765,0.02970175,90247.0,90246.0,0.0940584]
[1765701539223,0.002,90247.0,90246.0,0.0940584]
[1765701539428,0.02970175,90247.0,90246.0,0.0940584]
[1765701539951,0.002,90247.0,90246.0,0.0940584]
[1765701541330,0.002,90247.0,90246.0,0.05417696]
[1765701541537,0.002,90247.0,90246.0,0.03508409]
[1765701541538,0.02970175,90247.0,90246.0,0.03508409]
[1765701541739,0.02970175,90247.0,90246.0,0.05256409]
[1765701543095,0.002,90247.0,90246.0,0.05256409]
[1765701543234,0.02970175,90247.0,90246.0,0.05256409]
[1765701546355,0.02970175,90247.0,90246.0,0.00180488]
[1765701547659,0.02870175,90247.0,90246.0,0.00180488]
[1765701547860,0.02770175,90247.0,90246.0,0.00180488]
[1765701548000,0.02770175,90247.0,90246.0,0.00680488]
[1765701548205,0.02770175,90247.0,90246.0,0.01080488]
[1765701584331,0.06098222,90247.0,90246.0,0.01080488]
[1765701591670,0.02770175,90247.0,90246.0,0.01080488]
[1765701602254,0.2216138,90248.0,90246.0,0.01080488]
[1765701602456,0.2216138,90248.0,90246.0,0.01069829]
[1765701602682,0.23269179,90249.0,90247.0,0.02799]
[1765701602886,0.23269179,90249.0,90248.0,0.01649]
[1765701604530,0.23269179,90249.0,90248.0,0.02149]
[1765701604732,0.23269179,90249.0,90248.0,0.009]
[1765701612572,0.22162629,90242.0,90241.0,0.01838788]
[1765701612707,6.409e-05,90242.0,90241.0,0.01838788]
[1765701613796,0.00206409,90242.0,90241.0,0.01838788]
[1765701614120,0.00306409,90242.0,90241.0,0.01838788]
[1765701616604,0.00306409,90242.0,90241.0,0.0115]
[1765701619547,0.22162874,90241.0,90239.0,0.01771891]
[1765701619848,0.22162874,90241.0,90240.0,0.01771891]
[1765701620841,0.22662874,90241.0,90240.0,0.01771891]
[1765701621034,0.22362874,90241.0,90240.0,0.01771891]
[1765701621394,0.22762874,90241.0,90240.0,0.01871891]
[1765701622258,0.22562874,90241.0,90240.0,0.01871891]
[1765701622685,0.22762874,90241.0,90240.0,0.01871891]
[1765701623738,0.006,90241.0,90240.0,0.01871891]
[1765701657235,0.006,90241.0,90240.0,0.04331891]
[1765701659098,0.006,90241.0,90240.0,0.05995891]
[1765701665728,0.006,90241.0,90240.0,0.03535891]
[1765701665948,0.006,90241.0,90240.0,0.01871891]
[1765701666812,0.006,90241.0,90240.0,0.04331891]
[1765701667741,0.006,90241.0,90240.0,0.05995891]
[1765701669051,0.006,90241.0,90240.0,0.01871891]
[1765701671234,0.00306336,90241.0,90240.0,0.01871891]
[1765701682696,0.00306336,90241.0,90240.0,0.03619891]
[1765701712514,0.00306336,90241.0,90240.0,0.01871891]
[1765701712907,0.00306336,90241.0,90240.0,0.03619891]
[1765701735603,0.03237982,90241.0,90240.0,0.01871891]
[1765701736072,0.00467623,90241.0,90240.0,0.01871891]
[1765701742949,0.00467623,90241.0,90240.0,0.001]
[1765701743163,0.03237982,90241.0,90240.0,0.001]
[1765701743523,0.03037982,90241.0,90240.0,0.001]
[1765701743733,0.03037982,90241.0,90240.0,0.002]
[1765701745441,0.03037982,90241.0,90240.0,0.001]
[1765701745442,0.02931646,90241.0,90240.0,0.001]
[1765701745885,0.02931646,90241.0,90240.0,0.004]
[1765701755576,0.04679646,90241.0,90240.0,0.004]
[1765701775224,0.04679646,90241.0,90240.0,0.003]
[1765701775510,0.04679646,90241.0,90240.0,0.004]
[1765701775725,0.04679646,90241.0,90240.0,0.001]
[1765701775933,0.2216312,90240.0,90239.0,0.00023891]
[1765701776693,0.2391112,90240.0,90239.0,0.00023891]
[1765701777118,0.2401112,90240.0,90239.0,0.00323891]
[1765701778106,0.2401112,90240.0,90239.0,0.00423891]
[1765701825795,0.2226312,90240.0,90239.0,0.00423891]
[1765701834124,0.2348612,90240.0,90239.0,0.00423891]
[1765701843519,0.2226312,90240.0,90239.0,0.00423891]
[1765701861298,0.2226312,90240.0,90239.0,0.02774891]
[1765701861498,0.2226312,90240.0,90239.0,0.00423891]
[1765701879627,0.2225149,90240.0,90239.0,0.00423891]
[1765701955369,0.2399949,90240.0,90239.0,0.00423891]
[1765701981507,0.5306949,90240.0,90239.0,0.00423891]
[1765701981825,0.59108643,90240.0,90239.0,0.00423891]
[1765701983426,0.83528643,90240.0,90239.0,0.00423891]
[1765701983626,0.85918552,90240.0,90239.0,0.00423891]
[1765701992878,0.22167787,90221.0,90220.0,0.0002]
[1765701993952,0.22367787,90221.0,90220.0,0.0002]
[1765701995273,0.22567787,90221.0,90220.0,0.0002]
[1765701998473,0.22567787,90221.0,90220.0,0.00076754]
[1765702011637,0.22567787,90221.0,90220.0,0.01824754]
[1765702011841,0.22567787,90221.0,90220.0,0.00076754]
[1765702012414,0.25897008,90221.0,90220.0,0.00076754]
[1765702015255,0.25697008,90221.0,90220.0,0.00076754]
[1765702015597,0.25697008,90221.0,90220.0,0.00476754]
[1765702015897,0.25497008,90221.0,90220.0,0.00476754]
[1765702016261,0.25597008,90221.0,90220.0,0.00976754]
[1765702040529,0.54667008,90221.0,90220.0,0.00976754]
[1765702041436,0.55703882,90221.0,90220.0,0.00976754]
[1765702042195,0.54667008,90221.0,90220.0,0.00976754]
[1765702042589,0.55703846,90221.0,90220.0,0.00976754]
[1765702043357,0.55703809,90221.0,90220.0,0.00976754]
[1765702044333,0.54667008,90221.0,90220.0,0.00976754]
[1765702068398,0.55703431,90221.0,90220.0,0.00976754]
[1765702125588,0.55704292,90221.0,90220.0,0.00976754]
[1765702139043,0.5570436,90221.0,90220.0,0.00976754]
[1765702139266,0.55704361,90221.0,90220.0,0.00976754]
[1765702187252,0.55704463,90221.0,90220.0,0.00976754]
[1765702202840,0.55604463,90221.0,90220.0,0.00476754]
[1765702203285,0.55704463,90221.0,90220.0,0.00876754]
[1765702203699,0.55704463,90221.0,90220.0,0.00476754]
[1765702203872,0.55704463,90221.0,90220.0,0.00676754]
[1765702207299,0.54667008,90221.0,90220.0,0.00676754]
[1765702210350,0.25597008,90221.0,90220.0,0.00676754]
[1765702210575,0.22267787,90221.0,90220.0,0.05755754]
[1765702219094,0.22267787,90221.0,90220.0,0.09084909]
[1765702220619,0.001,90221.0,90220.0,0.09084909]
[1765702223895,0.001,90221.0,90220.0,0.09202354]
[1765702224663,0.001,90221.0,90220.0,0.09084909]
[1765702224891,0.01108364,90223.0,90220.0,0.08684909]
[1765702225088,0.01108364,90223.0,90222.0,0.01661]
[1765702225291,0.01108364,90223.0,90222.0,0.01711779]
[1765702225500,0.01108364,90223.0,90222.0,0.07497749]
[1765702226285,0.01108364,90223.0,90222.0,0.07997749]
[1765702226286,0.01208364,90223.0,90222.0,0.07997749]
[1765702226485,0.01208364,90223.0,90222.0,0.08297749]
[1765702246398,0.001,90223.0,90222.0,0.08297749]
[1765702248030,0.22267296,90223.0,90222.0,0.08297749]
[1765702248792,0.22267296,90223.0,90222.0,0.05840749]
[1765702249104,0.22267296,90223.0,90222.0,0.04179749]
[1765702257161,0.22267296,90223.0,90222.0,0.00850779]
[1765702262627,0.001,90223.0,90222.0,0.04946779]
[1765702262835,0.001,90223.0,90222.0,0.27231643]
[1765702263038,0.001,90223.0,90222.0,0.30442948]
[1765702263562,0.001,90223.0,90222.0,0.30142948]
[1765702264018,0.003,90223.0,90222.0,0.30142948]
[1765702264416,0.002,90223.0,90222.0,0.29642948]
[1765702264864,0.005,90223.0,90222.0,0.29642948]
[1765702265059,0.002,90223.0,90222.0,0.29642948]
[1765702265268,0.01108315,90227.0,90223.0,0.01108364]
[1765702265487,0.01108303,90228.0,90225.0,0.0110834]
[1765702265691,0.01108303,90228.0,90226.0,0.04231]
[1765702265866,0.01108303,90228.0,90227.0,0.02779]
[1765702266066,0.01108303,90228.0,90227.0,0.06370303]
[1765702267317,0.01508303,90228.0,90227.0,0.06370303]
[1765702267740,0.01508303,90228.0,90227.0,0.03887303]
[1765702267951,0.07597729,90228.0,90227.0,0.01108303]
[1765702268152,0.01108364,90223.0,90220.0,0.0002]
[1765702268562,0.22167787,90221.0,90220.0,0.0002]
[1765702269348,0.22167787,90221.0,90220.0,0.0052]